fUST/lending_fUST_20260611
["ID","MTS","AMOUNT","RATE_DAILY","PERIOD"]
[424740904,1781111447000,-500.0,0.00019452,2]
[424740905,1781111447000,-500.0,0.00019452,2]
[424740900,1781111447000,-5053.28,0.00019452,2]
[424740906,1781111447000,-500.0,0.00019452,2]
[424740908,1781111447000,-500.0,0.00019452,2]
[424740903,1781111447000,-500.0,0.00019452,2]
[424740902,1781111447000,-500.0,0.00019452,2]
[424740901,1781111447000,-500.0,0.00019452,2]
[424740898,1781111447000,-500.0,0.00019452,2]
[424740910,1781111447000,-500.0,0.00019452,2]
[424740899,1781111447000,-212.25,0.00019452,2]
[424740907,1781111447000,-500.0,0.00019452,2]
[424740913,1781111447000,-500.0,0.00019452,2]
[424740921,1781111447000,-500.0,0.00019452,2]
[424740920,1781111447000,-500.0,0.00019452,2]
[424740911,1781111447000,-632.82,0.00019452,2]
[424740922,1781111447000,-500.0,0.00019452,2]
[424740923,1781111447000,-500.0,0.00019452,2]
[424740915,1781111447000,-500.0,0.00019452,2]
[424740917,1781111447000,-756.07,0.00019452,2]
[424740914,1781111447000,-1004.94,0.00019452,2]
[424740916,1781111447000,-481.95,0.00019452,2]
[424740918,1781111447000,-500.0,0.00019452,2]
[424740919,1781111447000,-500.0,0.00019452,2]
[424740928,1781111447000,-1340.7,0.00019452,2]
[424740892,1781111447000,-500.0,0.00019452,2]
[424740912,1781111447000,-385.60567471,0.00019452,2]
[424740893,1781111447000,-493.53372642,0.00019452,2]
[424740924,1781111447000,-500.0,0.00019452,2]
[424740894,1781111447000,-500.0,0.00019452,2]
[424740872,1781111447000,-207.71,0.00019452,2]
[424740871,1781111447000,-500.0,0.00019452,2]
[424740866,1781111447000,-500.0,0.00019452,2]
[424740870,1781111447000,-189.17,0.00019452,2]
[424740865,1781111447000,-501.25887279,0.00019452,2]
[424740868,1781111447000,-500.0,0.00019452,2]
[424740867,1781111447000,-503.37121185,0.00019452,2]
[424740873,1781111447000,-335.92,0.00019452,2]
[424740876,1781111447000,-500.0,0.00019452,2]
[424740875,1781111447000,-500.0,0.00019452,2]
[424740881,1781111447000,-290.69579819,0.00019452,2]
[424740874,1781111447000,-471.98,0.00019452,2]
[424740877,1781111447000,-500.0,0.00019452,2]
[424740895,1781111447000,-500.0,0.00019452,2]
[424740884,1781111447000,-500.0,0.00019452,2]
[424740880,1781111447000,-500.0,0.00019452,2]
[424740878,1781111447000,-503.22371619,0.00019452,2]
[424740883,1781111447000,-627.12,0.00019452,2]
[424740882,1781111447000,-500.0,0.00019452,2]
[424740885,1781111447000,-304.21,0.00019452,2]
[424740897,1781111447000,-500.0,0.00019452,2]
[424740889,1781111447000,-500.0,0.00019452,2]
[424740886,1781111447000,-500.0,0.00019452,2]
[424740887,1781111447000,-576.4,0.00019452,2]
[424740896,1781111447000,-500.0,0.00019452,2]
[424740888,1781111447000,-500.0,0.00019452,2]
[424740890,1781111447000,-427.31,0.00019452,2]
[424740891,1781111447000,-205.83,0.00019452,2]
[424740879,1781111447000,-388.30229339,0.00019452,2]
[424740926,1781111447000,-500.0,0.00019452,2]
[424740869,1781111447000,-501.69407238,0.00019452,2]
[424740925,1781111447000,-543.67645652,0.00019452,2]
[424740972,1781111447000,-500.0,0.00019726,2]
[424740973,1781111447000,-500.0,0.00019726,2]
[424740966,1781111447000,-500.0,0.00019726,2]
[424740969,1781111447000,-500.0,0.00019726,2]
[424740963,1781111447000,-500.0,0.00019726,2]
[424740964,1781111447000,-500.0,0.00019726,2]
[424740961,1781111447000,-500.0,0.00019726,2]
[424740965,1781111447000,-500.0,0.00019726,2]
[424740967,1781111447000,-5053.28,0.00019726,2]
[424740970,1781111447000,-500.0,0.00019726,2]
[424740971,1781111447000,-500.0,0.00019726,2]
[424740968,1781111447000,-500.0,0.00019726,2]
[424740977,1781111447000,-500.0,0.00019726,2]
[424740962,1781111447000,-500.0,0.00019726,2]
[424740974,1781111447000,-500.0,0.00019726,2]
[424740984,1781111447000,-500.0,0.00019726,2]
[424740980,1781111447000,-1004.94,0.00019726,2]
[424740976,1781111447000,-690.0,0.00019726,2]
[424740981,1781111447000,-500.0,0.00019726,2]
[424740982,1781111447000,-756.07,0.00019726,2]
[424740978,1781111447000,-632.82,0.00019726,2]
[424740979,1781111447000,-500.0,0.00019726,2]
[424740988,1781111447000,-586.11572453,0.00019726,2]
[424740983,1781111447000,-500.0,0.00019726,2]
[424740986,1781111447000,-534.97517516,0.00019726,2]
[424740987,1781111447000,-500.0,0.00019726,2]
[424740989,1781111447000,-500.0,0.00019726,2]
[424740927,1781111447000,-500.0,0.00019452,2]
[424740975,1781111447000,-500.0,0.00019726,2]
[424740959,1781111447000,-175.76,0.00019726,2]
[424740985,1781111447000,-500.0,0.00019726,2]
[424740958,1781111447000,-500.0,0.00019726,2]
[424740957,1781111447000,-500.0,0.00019726,2]
[424740929,1781111447000,-231.37,0.00019452,2]
[424740931,1781111447000,-1536.5202778,0.000195,2]
[424740932,1781111447000,-151.0,0.000195,2]
[424740933,1781111447000,-446.986,0.00019516,2]
[424740930,1781111447000,-184.52363489,0.000195,2]
[424740936,1781111447000,-156.0,0.00019556,2]
[424740935,1781111447000,-188.08,0.00019516,2]
[424740938,1781111447000,-1275.67495902,0.0001959,2]
[424740937,1781111447000,-300.0,0.00019589,3]
[424740939,1781111447000,-151.0,0.000196,2]
[424740948,1781111447000,-500.0,0.00019726,2]
[424740940,1781111447000,-174.000662,0.000196,2]
[424740946,1781111447000,-500.0,0.00019726,2]
[424740934,1781111447000,-551.786,0.00019516,2]
[424740945,1781111447000,-500.0,0.00019726,2]
[424740947,1781111447000,-1457.2321,0.00019726,2]
[424740953,1781111447000,-500.0,0.00019726,2]
[424740954,1781111447000,-500.0,0.00019726,2]
[424740952,1781111447000,-500.0,0.00019726,2]
[424740949,1781111447000,-500.0,0.00019726,2]
[424740951,1781111447000,-500.0,0.00019726,2]
[424740956,1781111447000,-500.0,0.00019726,2]
[424740950,1781111447000,-500.0,0.00019726,2]
[424740942,1781111447000,-1536.5202778,0.000197,2]
[424740960,1781111447000,-500.0,0.00019726,2]
[424740941,1781111447000,-184.52363489,0.000197,2]
[424740955,1781111447000,-553.53,0.00019726,2]
[424740944,1781111447000,-492.0,0.00019708,2]
[424740943,1781111447000,-1000.0,0.00019708,2]
[424741029,1781111448000,-5053.28,0.0002,2]
[424741031,1781111448000,-300.0,0.0002,4]
[424741032,1781111448000,-500.0,0.0002,2]
[424741017,1781111448000,-500.0,0.0002,2]
[424741022,1781111448000,-357.01,0.0002,2]
[424741026,1781111448000,-500.0,0.0002,2]
[424741024,1781111448000,-500.0,0.0002,2]
[424741023,1781111448000,-500.0,0.0002,2]
[424741027,1781111448000,-500.0,0.0002,2]
[424741028,1781111448000,-500.0,0.0002,2]
[424741021,1781111448000,-500.0,0.0002,2]
[424741020,1781111448000,-500.0,0.0002,2]
[424741043,1781111448000,-1004.94,0.0002,2]
[424741030,1781111448000,-500.0,0.0002,2]
[424741033,1781111448000,-500.0,0.0002,2]
[424741040,1781111448000,-500.0,0.0002,2]
[424741037,1781111448000,-500.0,0.0002,2]
[424741038,1781111448000,-448.82181217,0.0002,2]
[424741036,1781111448000,-500.0,0.0002,2]
[424741034,1781111448000,-500.0,0.0002,2]
[424741041,1781111448000,-632.82,0.0002,2]
[424741042,1781111448000,-500.0,0.0002,2]
[424741010,1781111448000,-250.0,0.0002,2]
[424741039,1781111448000,-690.0,0.0002,2]
[424741025,1781111448000,-500.0,0.0002,2]
[424741019,1781111448000,-500.0,0.0002,2]
[424741003,1781111448000,-500.0,0.0002,2]
[424741015,1781111448000,-500.0,0.0002,2]
[424741035,1781111448000,-500.0,0.0002,2]
[424740994,1781111448000,-313.87996341,0.0001982,2]
[424740999,1781111448000,-500.0,0.0002,2]
[424740990,1781111448000,-500.0,0.00019726,2]
[424740991,1781111448000,-500.0,0.00019726,2]
[424740993,1781111448000,-231.37,0.00019726,2]
[424740995,1781111448000,-313.87996343,0.00019824,2]
[424740997,1781111448000,-1536.5202778,0.000199,2]
[424740998,1781111448000,-166.0,0.00019944,2]
[424740996,1781111448000,-327.4714646,0.00019899,2]
[424741000,1781111448000,-500.0,0.0002,2]
[424741014,1781111448000,-231.37,0.0002,2]
[424741007,1781111448000,-250.0,0.0002,2]
[424741002,1781111448000,-627.56,0.0002,3]
[424741001,1781111448000,-1457.2321,0.0002,2]
[424741006,1781111448000,-250.0,0.0002,2]
[424741004,1781111448000,-892257.50843792,0.0002,2]
[424741008,1781111448000,-250.0,0.0002,2]
[424741013,1781111448000,-500.0,0.0002,2]
[424741016,1781111448000,-474.95015315,0.0002,2]
[424741009,1781111448000,-250.0,0.0002,2]
[424741011,1781111448000,-264.2,0.0002,2]
[424741012,1781111448000,-500.0,0.0002,2]
[424741018,1781111448000,-500.0,0.0002,2]
[424741005,1781111448000,-250.0,0.0002,2]
[424741044,1781111448000,-500.0,0.0002,2]
[424740992,1781111448000,-1340.7,0.00019726,2]
[424741047,1781111448000,-500.0,0.0002,2]
[424741078,1781111448000,-500.0,0.00020273,2]
[424741080,1781111448000,-500.0,0.00020273,2]
[424741072,1781111448000,-500.0,0.00020273,2]
[424741074,1781111448000,-5053.28,0.00020273,2]
[424741076,1781111448000,-221.8,0.00020273,2]
[424741075,1781111448000,-500.0,0.00020273,2]
[424741081,1781111448000,-500.0,0.00020273,2]
[424741083,1781111448000,-500.0,0.00020273,2]
[424741084,1781111448000,-632.82,0.00020273,2]
[424741085,1781111448000,-500.0,0.00020273,2]
[424741089,1781111448000,-500.0,0.00020273,2]
[424741082,1781111448000,-690.0,0.00020273,2]
[424741088,1781111448000,-756.07,0.00020273,2]
[424741086,1781111448000,-1004.94,0.00020273,2]
[424741091,1781111448000,-500.0,0.00020273,2]
[424741090,1781111448000,-500.0,0.00020273,2]
[424741092,1781111448000,-500.0,0.00020273,2]
[424741094,1781111448000,-500.0,0.00020273,2]
[424741093,1781111448000,-500.0,0.00020273,2]
[424741099,1781111448000,-250.0,0.000203,2]
[424741096,1781111448000,-1340.7,0.00020273,2]
[424741095,1781111448000,-500.0,0.00020273,2]
[424741045,1781111448000,-756.07,0.0002,2]
[424741098,1781111448000,-1536.5202778,0.000203,2]
[424741087,1781111448000,-500.0,0.00020273,2]
[424741079,1781111448000,-500.0,0.00020273,2]
[424741097,1781111448000,-231.37,0.00020274,2]
[424741073,1781111448000,-500.0,0.00020273,2]
[424741077,1781111448000,-500.0,0.00020273,2]
[424741048,1781111448000,-500.0,0.0002,2]
[424741046,1781111448000,-500.0,0.0002,2]
[424741049,1781111448000,-500.0,0.0002,2]
[424741051,1781111448000,-500.0,0.0002,2]
[424741053,1781111448000,-1340.7,0.0002,2]
[424741050,1781111448000,-500.0,0.0002,2]
[424741055,1781111448000,-1536.5202778,0.000201,2]
[424741058,1781111448000,-646.4281,0.00020273,2]
[424741057,1781111448000,-500.0,0.00020273,2]
[424741054,1781111448000,-829.997076,0.000201,2]
[424741052,1781111448000,-500.0,0.0002,2]
[424741056,1781111448000,-500.0,0.00020273,2]
[424741070,1781111448000,-500.0,0.00020273,2]
[424741060,1781111448000,-500.0,0.00020273,2]
[424741063,1781111448000,-500.0,0.00020273,2]
[424741067,1781111448000,-500.0,0.00020273,2]
[424741065,1781111448000,-500.0,0.00020273,2]
[424741066,1781111448000,-500.0,0.00020273,2]
[424741071,1781111448000,-500.0,0.00020273,2]
[424741064,1781111448000,-500.0,0.00020273,2]
[424741062,1781111448000,-200.57718008,0.00020273,2]
[424741061,1781111448000,-500.0,0.00020273,2]
[424741059,1781111448000,-500.0,0.00020273,2]
[424741069,1781111448000,-500.0,0.00020273,2]
[424741068,1781111448000,-500.0,0.00020273,2]
[424741136,1781111449000,-632.82,0.00020547,2]
[424741130,1781111449000,-500.0,0.00020547,2]
[424741128,1781111449000,-500.0,0.00020547,2]
[424741131,1781111449000,-500.0,0.00020547,2]
[424741132,1781111449000,-500.0,0.00020547,2]
[424741134,1781111449000,-690.0,0.00020547,2]
[424741133,1781111449000,-500.0,0.00020547,2]
[424741144,1781111449000,-500.0,0.00020547,2]
[424741135,1781111449000,-500.0,0.00020547,2]
[424741129,1781111449000,-500.0,0.00020547,2]
[424741143,1781111449000,-309.65123962,0.00020547,2]
[424741138,1781111449000,-1004.94,0.00020547,2]
[424741141,1781111449000,-500.0,0.00020547,2]
[424741139,1781111449000,-500.0,0.00020547,2]
[424741140,1781111449000,-756.07,0.00020547,2]
[424741142,1781111449000,-500.0,0.00020547,2]
[424741145,1781111449000,-500.0,0.00020547,2]
[424741153,1781111449000,-162.03,0.0002069,2]
[424741149,1781111449000,-231.37,0.00020548,2]
[424741148,1781111449000,-1340.7,0.00020547,2]
[424741154,1781111449000,-1536.5202778,0.000207,2]
[424741127,1781111449000,-5053.28,0.00020547,2]
[424741137,1781111449000,-500.0,0.00020547,2]
[424741126,1781111449000,-500.0,0.00020547,2]
[424741111,1781111449000,-187.89570925,0.00020547,2]
[424741121,1781111449000,-500.0,0.00020547,2]
[424741100,1781111449000,-250.0,0.000203,2]
[424741107,1781111449000,-1763.0,0.00020508,2]
[424741101,1781111449000,-203.35950008,0.00020479,2]
[424741102,1781111449000,-365.68105305,0.00020479,2]
[424741105,1781111449000,-558.19032817,0.00020479,2]
[424741104,1781111449000,-357.24181003,0.00020479,2]
[424741106,1781111449000,-1536.5202778,0.000205,2]
[424741103,1781111449000,-312.58658377,0.00020479,2]
[424741108,1781111449000,-1416.0,0.00020508,2]
[424741112,1781111449000,-500.0,0.00020547,2]
[424741109,1781111449000,-2121.0,0.00020508,2]
[424741114,1781111449000,-500.0,0.00020547,2]
[424741110,1781111449000,-3483.0,0.00020508,2]
[424741115,1781111449000,-500.0,0.00020547,2]
[424741116,1781111449000,-500.0,0.00020547,2]
[424741113,1781111449000,-500.0,0.00020547,2]
[424741117,1781111449000,-500.0,0.00020547,2]
[424741120,1781111449000,-500.0,0.00020547,2]
[424741119,1781111449000,-524.612328,0.00020547,2]
[424741118,1781111449000,-500.0,0.00020547,2]
[424741124,1781111449000,-500.0,0.00020547,2]
[424741123,1781111449000,-500.0,0.00020547,2]
[424741122,1781111449000,-500.0,0.00020547,2]
[424741125,1781111449000,-500.0,0.00020547,2]
[424741150,1781111449000,-166.0,0.00020563,2]
[424741151,1781111449000,-844.0,0.00020638,2]
[424741156,1781111449000,-500.0,0.00020821,2]
[424741191,1781111449000,-180.72062066,0.00020967,2]
[424741192,1781111449000,-500.0,0.00021095,2]
[424741189,1781111449000,-316.2064847,0.00020876,2]
[424741181,1781111449000,-756.07,0.00020821,2]
[424741183,1781111449000,-500.0,0.00020821,2]
[424741182,1781111449000,-500.0,0.00020821,2]
[424741186,1781111449000,-500.0,0.00020821,2]
[424741184,1781111449000,-500.0,0.00020821,2]
[424741188,1781111449000,-276.68067411,0.00020876,2]
[424741187,1781111449000,-231.37,0.00020822,2]
[424741185,1781111449000,-500.0,0.00020821,2]
[424741195,1781111449000,-552.51820732,0.00021095,2]
[424741196,1781111449000,-500.0,0.00021095,2]
[424741201,1781111449000,-500.0,0.00021095,2]
[424741197,1781111449000,-500.0,0.00021095,2]
[424741200,1781111449000,-500.0,0.00021095,2]
[424741198,1781111449000,-500.0,0.00021095,2]
[424741204,1781111449000,-500.0,0.00021095,2]
[424741193,1781111449000,-500.0,0.00021095,2]
[424741203,1781111449000,-500.0,0.00021095,2]
[424741199,1781111449000,-500.0,0.00021095,2]
[424741202,1781111449000,-500.0,0.00021095,2]
[424741147,1781111449000,-500.0,0.00020547,2]
[424741190,1781111449000,-1536.5202778,0.000209,2]
[424741180,1781111449000,-500.0,0.00020821,2]
[424741194,1781111449000,-500.0,0.00021095,2]
[424741174,1781111449000,-500.0,0.00020821,2]
[424741152,1781111449000,-162.03,0.0002069,2]
[424741176,1781111449000,-500.0,0.00020821,2]
[424741146,1781111449000,-280.18,0.00020547,2]
[424741155,1781111449000,-500.0,0.00020821,2]
[424741158,1781111449000,-500.0,0.00020821,2]
[424741166,1781111449000,-500.0,0.00020821,2]
[424741157,1781111449000,-500.0,0.00020821,2]
[424741168,1781111449000,-5053.28,0.00020821,2]
[424741160,1781111449000,-500.0,0.00020821,2]
[424741159,1781111449000,-500.0,0.00020821,2]
[424741162,1781111449000,-500.0,0.00020821,2]
[424741163,1781111449000,-500.0,0.00020821,2]
[424741167,1781111449000,-500.0,0.00020821,2]
[424741161,1781111449000,-500.0,0.00020821,2]
[424741178,1781111449000,-500.0,0.00020821,2]
[424741179,1781111449000,-1004.94,0.00020821,2]
[424741170,1781111449000,-500.0,0.00020821,2]
[424741175,1781111449000,-690.0,0.00020821,2]
[424741173,1781111449000,-500.0,0.00020821,2]
[424741177,1781111449000,-632.82,0.00020821,2]
[424741171,1781111449000,-500.0,0.00020821,2]
[424741169,1781111449000,-500.0,0.00020821,2]
[424741165,1781111449000,-500.0,0.00020821,2]
[424741164,1781111449000,-500.0,0.00020821,2]
[424741172,1781111449000,-500.0,0.00020821,2]
[424741250,1781111450000,-756.07,0.00021369,2]
[424741253,1781111450000,-500.0,0.00021369,2]
[424741242,1781111450000,-500.0,0.00021369,2]
[424741243,1781111450000,-500.0,0.00021369,2]
[424741251,1781111450000,-500.0,0.00021369,2]
[424741238,1781111450000,-500.0,0.00021369,2]
[424741240,1781111450000,-500.0,0.00021369,2]
[424741234,1781111450000,-500.0,0.00021369,2]
[424741232,1781111450000,-500.0,0.00021369,2]
[424741239,1781111450000,-500.0,0.00021369,2]
[424741233,1781111450000,-500.0,0.00021369,2]
[424741236,1781111450000,-500.0,0.00021369,2]
[424741254,1781111450000,-500.0,0.00021369,2]
[424741260,1781111450000,-500.0,0.00021643,2]
[424741252,1781111450000,-500.0,0.00021369,2]
[424741245,1781111450000,-500.0,0.00021369,2]
[424741247,1781111450000,-500.0,0.00021369,2]
[424741249,1781111450000,-500.0,0.00021369,2]
[424741248,1781111450000,-1004.94,0.00021369,2]
[424741244,1781111450000,-690.0,0.00021369,2]
[424741256,1781111450000,-231.37,0.0002137,2]
[424741257,1781111450000,-391.521241,0.00021479,2]
[424741255,1781111450000,-500.0,0.00021369,2]
[424741258,1781111450000,-500.0,0.00021643,2]
[424741265,1781111450000,-500.0,0.00021643,2]
[424741237,1781111450000,-5053.28,0.00021369,2]
[424741246,1781111450000,-632.82,0.00021369,2]
[424741235,1781111450000,-500.0,0.00021369,2]
[424741211,1781111450000,-500.0,0.00021095,2]
[424741230,1781111450000,-500.0,0.00021369,2]
[424741261,1781111450000,-500.0,0.00021643,2]
[424741216,1781111450000,-1004.94,0.00021095,2]
[424741206,1781111450000,-500.0,0.00021095,2]
[424741210,1781111450000,-500.0,0.00021095,2]
[424741209,1781111450000,-500.0,0.00021095,2]
[424741205,1781111450000,-5053.28,0.00021095,2]
[424741208,1781111450000,-500.0,0.00021095,2]
[424741207,1781111450000,-500.0,0.00021095,2]
[424741215,1781111450000,-500.0,0.00021095,2]
[424741212,1781111450000,-690.0,0.00021095,2]
[424741213,1781111450000,-500.0,0.00021095,2]
[424741214,1781111450000,-632.82,0.00021095,2]
[424741241,1781111450000,-500.0,0.00021369,2]
[424741217,1781111450000,-500.0,0.00021095,2]
[424741229,1781111450000,-500.0,0.00021369,2]
[424741226,1781111450000,-500.0,0.00021369,2]
[424741218,1781111450000,-756.07,0.00021095,2]
[424741223,1781111450000,-500.0,0.00021095,2]
[424741228,1781111450000,-500.0,0.00021369,2]
[424741219,1781111450000,-500.0,0.00021095,2]
[424741227,1781111450000,-500.0,0.00021369,2]
[424741221,1781111450000,-500.0,0.00021095,2]
[424741222,1781111450000,-500.0,0.00021095,2]
[424741225,1781111450000,-500.0,0.00021369,2]
[424741224,1781111450000,-231.37,0.00021096,2]
[424741231,1781111450000,-500.0,0.00021369,2]
[424741220,1781111450000,-500.0,0.00021095,2]
[424741259,1781111450000,-500.0,0.00021643,2]
[424741315,1781111450000,-690.0,0.00021917,2]
[424741263,1781111450000,-500.0,0.00021643,2]
[424741294,1781111450000,-360.311296,0.00021799,2]
[424741297,1781111450000,-483.23063102,0.00021917,2]
[424741298,1781111450000,-500.0,0.00021917,2]
[424741299,1781111450000,-500.0,0.00021917,2]
[424741300,1781111450000,-500.0,0.00021917,2]
[424741301,1781111450000,-500.0,0.00021917,2]
[424741302,1781111450000,-500.0,0.00021917,2]
[424741303,1781111450000,-500.0,0.00021917,2]
[424741304,1781111450000,-500.0,0.00021917,2]
[424741305,1781111450000,-500.0,0.00021917,2]
[424741307,1781111450000,-377.24,0.00021917,2]
[424741306,1781111450000,-500.0,0.00021917,2]
[424741296,1781111450000,-825.0,0.00021856,2]
[424741308,1781111450000,-5053.28,0.00021917,2]
[424741311,1781111450000,-500.0,0.00021917,2]
[424741310,1781111450000,-500.0,0.00021917,2]
[424741312,1781111450000,-500.0,0.00021917,2]
[424741313,1781111450000,-500.0,0.00021917,2]
[424741314,1781111450000,-500.0,0.00021917,2]
[424741320,1781111450000,-500.0,0.00021917,2]
[424741316,1781111450000,-500.0,0.00021917,2]
[424741317,1781111450000,-632.82,0.00021917,2]
[424741322,1781111450000,-160.0,0.00021917,2]
[424741321,1781111450000,-756.07,0.00021917,2]
[424741319,1781111450000,-1004.94,0.00021917,2]
[424741262,1781111450000,-500.0,0.00021643,2]
[424741309,1781111450000,-500.0,0.00021917,2]
[424741295,1781111450000,-560.622592,0.00021799,2]
[424741318,1781111450000,-241.65509216,0.00021917,2]
[424741292,1781111450000,-170.103076,0.00021747,2]
[424741293,1781111450000,-160.0,0.00021799,2]
[424741266,1781111450000,-500.0,0.00021643,2]
[424741276,1781111450000,-500.0,0.00021643,2]
[424741271,1781111450000,-500.0,0.00021643,2]
[424741272,1781111450000,-500.0,0.00021643,2]
[424741277,1781111450000,-690.0,0.00021643,2]
[424741275,1781111450000,-500.0,0.00021643,2]
[424741274,1781111450000,-500.0,0.00021643,2]
[424741269,1781111450000,-500.0,0.00021643,2]
[424741270,1781111450000,-5053.28,0.00021643,2]
[424741278,1781111450000,-500.0,0.00021643,2]
[424741267,1781111450000,-500.0,0.00021643,2]
[424741279,1781111450000,-632.82,0.00021643,2]
[424741264,1781111450000,-500.0,0.00021643,2]
[424741273,1781111450000,-500.0,0.00021643,2]
[424741287,1781111450000,-500.0,0.00021643,2]
[424741286,1781111450000,-500.0,0.00021643,2]
[424741289,1781111450000,-231.37,0.00021644,2]
[424741285,1781111450000,-500.0,0.00021643,2]
[424741268,1781111450000,-500.0,0.00021643,2]
[424741288,1781111450000,-500.0,0.00021643,2]
[424741284,1781111450000,-500.0,0.00021643,2]
[424741280,1781111450000,-500.0,0.00021643,2]
[424741290,1781111450000,-1000.0,0.00021678,10]
[424741281,1781111450000,-1004.94,0.00021643,2]
[424741283,1781111450000,-756.07,0.00021643,2]
[424741282,1781111450000,-500.0,0.00021643,2]
[424741291,1781111450000,-791.0,0.00021678,10]
[424741361,1781111451000,-305.466781,0.00022244,14]
[424741358,1781111451000,-500.0,0.00022191,2]
[424741360,1781111451000,-425.257688,0.00022236,14]
[424741364,1781111451000,-1412.587172,0.00022284,14]
[424741354,1781111451000,-500.0,0.00022191,2]
[424741359,1781111451000,-231.37,0.00022192,2]
[424741357,1781111451000,-500.0,0.00022191,2]
[424741355,1781111451000,-500.0,0.00022191,2]
[424741356,1781111451000,-500.0,0.00022191,2]
[424741353,1781111451000,-160.0,0.00022191,2]
[424741362,1781111451000,-160.0,0.00022284,14]
[424741363,1781111451000,-786.293586,0.00022284,14]
[424741369,1781111451000,-1000.0,0.00022464,5]
[424741367,1781111451000,-151.0,0.00022331,2]
[424741366,1781111451000,-194.72792766,0.00022331,2]
[424741371,1781111451000,-638.45,0.00022465,2]
[424741368,1781111451000,-825.0,0.0002242,2]
[424741372,1781111451000,-500.0,0.00022465,2]
[424741373,1781111451000,-500.0,0.00022465,2]
[424741376,1781111451000,-360.72,0.00022465,2]
[424741370,1781111451000,-500.0,0.00022465,2]
[424741374,1781111451000,-5053.28,0.00022465,2]
[424741377,1781111451000,-690.0,0.00022465,2]
[424741375,1781111451000,-500.0,0.00022465,2]
[424741351,1781111451000,-500.0,0.00022191,2]
[424741365,1781111451000,-157.3,0.00022302,10]
[424741352,1781111451000,-756.07,0.00022191,2]
[424741335,1781111451000,-500.0,0.00022191,2]
[424741349,1781111451000,-632.82,0.00022191,2]
[424741323,1781111451000,-500.0,0.00021917,2]
[424741324,1781111451000,-500.0,0.00021917,2]
[424741326,1781111451000,-500.0,0.00021917,2]
[424741330,1781111451000,-157.08,0.00022075,10]
[424741329,1781111451000,-825.0,0.00021935,2]
[424741328,1781111451000,-231.37,0.00021918,2]
[424741331,1781111451000,-500.0,0.00022191,2]
[424741325,1781111451000,-500.0,0.00021917,2]
[424741327,1781111451000,-500.0,0.00021917,2]
[424741332,1781111451000,-500.0,0.00022191,2]
[424741339,1781111451000,-500.0,0.00022191,2]
[424741334,1781111451000,-500.0,0.00022191,2]
[424741338,1781111451000,-500.0,0.00022191,2]
[424741336,1781111451000,-500.0,0.00022191,2]